Workbook

Sheet Sheet1
B2: Level 3/4 Maths - Area Created by Mr.Lafferty@mathsrevision.com
B7: ="Q1. Calculate the area of the basic shapes below." -> Q1. Calculate the area of the basic shapes below.
L10: =ROUND(RAND()*(9-4)+4,0) -> 5 | N10: cm | AK10: =ROUND(RAND()*(15-6)+6,0) -> 8 | AM10: cm
AZ11: =ROUND(F13*L10,1) -> 139.5
F13: =ROUND(RAND()*(30-18)+18,1) -> 27.9 | I13: cm | U13: =ROUND(RAND()*(15-6)+6,0) -> 11 | W13: cm | AG13: =ROUND(RAND()*(15-6)+6,1) -> 11.6 | AI13: cm | AZ13: =ROUND(U13*U13,1) -> 121
AZ15: =ROUND(AG13*AK10*0.5,1) -> 46.4
D16: (1 decimal place) | S16: (1 decimal place) | AF16: (1 decimal place)
I18: cm2 | X18: cm2 | AK18: cm2
B21: ="Q2. Calculate the are of the rhombus." -> Q2. Calculate the are of the rhombus.
M25: Answer = | W25: m2 | AM25: =ROUND(RAND()*(15-6)+6,1) -> 7.2 | AO25: m | AZ25: =ROUND(0.5*AM25*AH29,1) -> 18
R27: (1 decimal place)
AH29: =ROUND(RAND()*(9-4)+4,0) -> 5 | AJ29: m
B32: ="Q3. Calculate the area of the parallelogram." -> Q3. Calculate the area of the parallelogram.
M36: Answer = | W36: m2 | AM36: =ROUND(RAND()*(15-6)+6,1) -> 14.3 | AO36: m | AZ36: =ROUND(AG40*AM36,1) -> 85.8
R38: (1 decimal place)
AG40: =ROUND(RAND()*(9-4)+4,0) -> 6 | AI40: m
B43: Q4. Calculate the area and perimeter of the circle.
L45: Take π = 3.14
I47: Area | Q47: cm2 | T47: (to 1 decimal places) | AZ47: =ROUND(3.14*(AM48/2)*(AM48/2),1) -> 95
AM48: =ROUND(RAND()*(12-(9))+(9),0) -> 11 | AO48: cm
I50: Perimeter | Q50: cm | T50: (to 1 decimal places) | AZ50: =ROUND(3.14*AM48,1) -> 34.5
AG54: =ROUND(0.58*AG64,1) -> 5.8 | AI54: m
B55: ="Q5. Calculate the area of the arrow." -> Q5. Calculate the area of the arrow.
AM58: =ROUND(RAND()*(30-(20))+(20),0) -> 26 | AO58: m
H59: Answer = | Q59: m2 | AZ59: =ROUND(AG54*(AM58-AB61)+(0.5*AG64*AB61),1) -> 143.8
L61: (1 decimal place) | AB61: =ROUND(0.34*AM58,1) -> 8.8 | AD61: m
AG64: =ROUND(RAND()*(12-(8))+(8),0) -> 10 | AI64: m
AG67: =ROUND(RAND()*(12-(8))+(8),0) -> 11 | AI67: m
B69: ="Q6. Calculate the area of the composite shape." -> Q6. Calculate the area of the composite shape.
H73: Answer = | Q73: m2 | Y73: =ROUND(RAND()*(30-(20))+(20),0) -> 21 | AA73: m | AL73: =ROUND(Y73*0.85,1) -> 17.9 | AN73: m | AZ73: =ROUND((AG79*AL73)+(AG67*(Y73-AL73)),1) -> 89.6
L75: (1 decimal place)
AG79: =ROUND(RAND()*(5-(2))+(2),1) -> 3.1 | AI79: m
AF82: =ROUND(RAND()*(30-(20))+(20),0) -> 28 | AH82: m
B83: ="Q7. Calculate the area of the blue shaded part." -> Q7. Calculate the area of the blue shaded part.
V86: =ROUND(AF82*0.46,1) -> 12.9 | X86: m | AP86: =ROUND(V86*0.73,1) -> 9.4 | AR86: m
H87: Answer = | Q87: m2 | AZ87: =ROUND((AF82*V86)-(AD90*AP86),1) -> 255.9
L89: (1 decimal place)
AD90: =ROUND(AF82*0.4,1) -> 11.2 | AF90: m
B93: ="Q8. Calculate the area of the blue shaded part." -> Q8. Calculate the area of the blue shaded part.
Y98: =AG106-ROUND(RAND()*(10-3)+3,0) -> 95 | AA98: cm
H99: Answer = | Q99: cm2 | AZ99: =ROUND(((Y98*AG106)-0.5*AG104*Y98),0) -> 8313
L101: (nearest whole number)
AG104: =ROUND(AG106/4,0) -> 25 | AI104: cm
AG106: =ROUND(RAND()*(10-1)+1,0)*10 -> 100 | AI106: cm
B109: ="Q9. Calculate the area of the shaded part of the logo." -> Q9. Calculate the area of the shaded part of the logo.
AK111: =ROUND(RAND()*(20-(13))+(13),0) -> 19 | AM111: cm
H115: Answer = | Q115: cm2 | S115: (nearest whole number) | AZ115: =ROUND(0.5*AD117*AK111-(0.5*AK124*AR117),0) -> 192
AD117: =ROUND(RAND()*(30-(20))+(20),0) -> 24 | AF117: cm | AR117: =ROUND(AD117/4,0) -> 6 | AT117: cm
AK124: =ROUND(AK111*0.65,0) -> 12 | AM124: cm

Sheet Sheet3
